bitfinex-derivatives/quotes_BTCF0:USTF0_20250207
["timestamp","ask_amount","ask_price","bid_price","bid_amount"]
[1738947495722,0.001,98063.0,98061.0,0.2038627]
[1738947495932,0.001,98063.0,98057.0,0.91062324]
[1738947496136,0.001,98063.0,98058.0,0.2038689]
[1738947496137,0.001,98060.0,98058.0,0.2038689]
[1738947496333,0.00015299,98067.0,98059.0,0.2117]
[1738947496531,0.00015299,98067.0,98066.0,0.5646531]
[1738947497042,0.1,98100.0,98066.0,0.3608]
[1738947497333,0.1,98100.0,98060.0,0.6615259]
[1738947497334,0.1,98100.0,98099.0,0.24532559]
[1738947497535,0.1,98100.0,98090.0,0.54108008]
[1738947497729,0.1,98100.0,98090.0,0.54056008]
[1738947497924,0.203796,98094.0,98090.0,0.17976008]
[1738947498130,0.2038113,98087.0,98085.0,0.00015291]
[1738947498430,0.1,98100.0,98086.0,0.3608]
[1738947498733,0.2038115,98086.0,98085.0,0.00015291]
[1738947498938,0.2038676,98059.0,98058.0,0.004]
[1738947499147,0.1152,98085.0,98058.0,0.3608001]
[1738947499438,0.2038059,98089.0,98081.0,0.3608]
[1738947499643,0.102,98100.0,98081.0,0.3608]
[1738947499942,0.28176008,98100.0,98081.0,0.3608]
[1738947500136,0.15189766,98081.0,98071.0,0.3608]
[1738947500326,0.1152,98080.0,98071.0,0.3608]
[1738947500531,0.2038406,98072.0,98071.0,0.3608]
[1738947500726,0.203851,98067.0,98066.0,0.36095291]
[1738947500937,0.1152,98080.0,98066.0,0.36095291]
[1738947501129,0.1152,98080.0,98079.0,0.5646261]
[1738947501327,0.1152,98080.0,98079.0,0.3608]
[1738947501645,0.2038401,98073.0,98066.0,0.36095291]
[1738947501833,0.11632001,98080.0,98069.0,0.3608]
[1738947502135,0.11632001,98080.0,98079.0,0.3608]
[1738947502136,0.12362655,98080.0,98079.0,0.3608]
[1738947502638,0.1152,98080.0,98079.0,0.3608]
[1738947502841,0.15189766,98081.0,98079.0,0.3608]
[1738947503033,0.1136,98098.0,98079.0,0.3608]
[1738947503339,0.1136,98098.0,98097.0,0.9253887]
[1738947503740,0.24303625,98108.0,98099.0,0.2037845]
[1738947503934,0.00837494,98107.0,98097.0,0.72216]
[1738947504252,0.006,98098.0,98097.0,0.7216]
[1738947504943,0.2037863,98099.0,98097.0,0.7216]
[1738947505333,0.103,98100.0,98097.0,0.7216]
[1738947505641,0.103,98100.0,98099.0,0.2037845]
[1738947506031,0.103,98100.0,98097.0,0.72212]
[1738947506032,0.24303625,98108.0,98097.0,0.72212]
[1738947506235,0.27341579,98115.0,98114.0,0.2037534]
[1738947506432,0.27341579,98115.0,98114.0,0.6214734]
[1738947506633,0.31239398,98122.0,98114.0,0.6214734]
[1738947506634,0.30379532,98122.0,98114.0,0.41772]
[1738947506837,0.30379532,98122.0,98115.0,0.1065]
[1738947507045,0.2037513,98115.0,98114.0,0.3608]
[1738947507444,0.2037513,98115.0,98114.0,0.3618]
[1738947507445,0.2077513,98115.0,98114.0,0.3618]
[1738947507646,0.3648,98115.0,98097.0,0.001]
[1738947507848,0.2038344,98075.0,98057.0,0.3608]
[1738947508039,0.05692,98082.0,98067.0,0.3608]
[1738947508348,0.2038697,98058.0,98057.0,0.3608]
[1738947509744,0.2038878,98050.0,98048.0,0.00015291]
[1738947509944,0.35688,98058.0,98032.0,0.3608]
[1738947509945,0.2039217,98033.0,98032.0,0.3608]
[1738947510246,0.20393,98029.0,98028.0,0.24034847]
[1738947510450,0.17964881,98042.0,98028.0,0.24034847]
[1738947510636,0.17964881,98042.0,98034.0,0.3608]
[1738947511048,0.20393,98030.0,98028.0,0.24034847]
[1738947511242,0.17964881,98042.0,98029.0,0.3608]
[1738947511546,0.17964881,98042.0,98039.0,0.3608]
[1738947512044,0.17964881,98042.0,98040.0,0.3608]
[1738947512244,0.00015298,98048.0,98040.0,0.3608]
[1738947512545,0.00015298,98048.0,98041.0,0.2039055]
[1738947513650,0.00115298,98048.0,98041.0,0.2039055]
[1738947513852,0.00115298,98048.0,98040.0,0.3608]
[1738947514142,0.00115298,98048.0,98041.0,0.006]
[1738947514746,0.00115298,98048.0,98041.0,0.01]
[1738947515552,0.00015298,98048.0,98041.0,0.004]
[1738947515746,0.00015298,98048.0,98041.0,0.006]
[1738947516139,0.00015298,98048.0,98040.0,0.3608]
[1738947516339,0.00015298,98048.0,98041.0,0.005]
[1738947516544,0.2039021,98043.0,98041.0,0.005]
[1738947516742,0.2039021,98043.0,98041.0,0.004]
[1738947516952,0.2039021,98043.0,98041.0,0.005]
[1738947517663,0.00015298,98048.0,98041.0,0.005]
[1738947517949,0.00015298,98048.0,98041.0,0.001]
[1738947518850,0.00015298,98048.0,98040.0,0.3658]
[1738947518851,0.001,98043.0,98040.0,0.3658]
[1738947519347,0.00015298,98048.0,98040.0,0.3608]
[1738947519556,0.00015298,98048.0,98041.0,0.001]
[1738947519747,0.203901,98044.0,98041.0,0.001]
[1738947519945,0.00015298,98048.0,98040.0,0.3608]
[1738947520145,0.00015298,98048.0,98040.0,0.3618]
[1738947520455,0.00015298,98048.0,98040.0,0.3638]
[1738947521150,0.00015298,98048.0,98041.0,0.2039044]
[1738947521756,0.00115298,98048.0,98041.0,0.2039044]
[1738947522153,0.00015298,98048.0,98040.0,0.48016]
[1738947522347,0.2039043,98042.0,98041.0,0.001]
[1738947522856,0.2039043,98042.0,98040.0,0.3638]
[1738947523056,0.2039043,98042.0,98040.0,0.003]
[1738947523257,0.2039304,98029.0,98025.0,0.3608]
[1738947523557,0.2039188,98035.0,98025.0,0.5647387]
[1738947523759,0.2039188,98035.0,98033.0,0.3608]
[1738947524157,0.2039188,98035.0,98033.0,0.29064516]
[1738947525156,0.23652881,98040.0,98028.0,0.00615298]
[1738947525359,0.2039304,98029.0,98028.0,8e-08]
[1738947525558,0.5647304,98029.0,98028.0,8e-08]
[1738947526063,0.23652881,98040.0,98018.0,0.3608]
[1738947526064,0.24332611,98040.0,98018.0,0.3608]
[1738947526252,0.2039489,98021.0,98018.0,0.3608]
[1738947526648,0.2039489,98021.0,98018.0,0.5647522]
[1738947526849,0.2039497,98020.0,98018.0,0.3608]
[1738947528559,0.003,98020.0,98012.0,0.3608]
[1738947528758,0.2039637,98013.0,98012.0,0.3608]
[1738947530258,0.2039637,98013.0,98012.0,0.3658]
[1738947530462,0.2049637,98013.0,98012.0,0.3658]
[1738947531056,0.2039679,98011.0,98010.0,0.00015298]
[1738947531256,0.2039679,98011.0,98010.0,8e-08]
[1738947531461,0.2039679,98011.0,98000.0,0.1]
[1738947531462,0.2039887,98001.0,98000.0,8e-08]
[1738947532166,0.5039887,98001.0,98000.0,8e-08]
[1738947532751,0.2040074,97992.0,97991.0,6e-08]
[1738947532952,0.6216874,97992.0,97991.0,6e-08]
[1738947533151,0.2040865,97954.0,97953.0,0.3608]
[1738947533953,0.2040865,97954.0,97945.0,0.24034847]
[1738947533954,0.17964881,97963.0,97947.0,0.2040992]
[1738947534152,0.2040947,97951.0,97945.0,0.24034847]
[1738947534462,0.2041053,97945.0,97944.0,0.00015307]
[1738947534967,0.05688,97952.0,97944.0,0.00015307]
[1738947535154,0.2040983,97950.0,97949.0,0.2040963]
[1738947535350,0.2040983,97950.0,97949.0,0.5738963]
[1738947535668,0.001,97951.0,97949.0,0.5738963]
[1738947535856,0.2040841,97956.0,97949.0,0.3608]
[1738947536057,0.2040841,97956.0,97951.0,0.2040917]
[1738947536358,0.2040854,97955.0,97951.0,0.2040917]
[1738947536559,0.00115307,97963.0,97954.0,0.3608]
[1738947536749,0.20422287,97963.0,97962.0,0.3608]
[1738947537149,0.00015307,97963.0,97962.0,0.3608]
[1738947537361,0.00696557,97981.0,97980.0,0.2040324]
[1738947537552,0.3475,98009.0,97988.0,0.2040147]
[1738947537754,0.2039977,97997.0,97995.0,0.3608]
[1738947538962,0.2109977,97997.0,97995.0,0.3618]
[1738947539750,0.3608,97996.0,97995.0,0.001]
[1738947539951,0.2040616,97966.0,97965.0,0.3608]
[1738947541365,0.2040501,97972.0,97965.0,0.3608]
[1738947541865,0.001,97966.0,97965.0,0.5648624]
[1738947542065,0.2050616,97966.0,97965.0,0.3608]
[1738947542862,0.2050616,97966.0,97956.0,0.00015306]
[1738947542863,0.001,97972.0,97956.0,0.36095306]
[1738947543052,0.2040803,97957.0,97956.0,0.00015306]
[1738947543251,0.001,97972.0,97956.0,0.36095306]
[1738947543456,0.001,97972.0,97971.0,0.3608]
[1738947544650,0.2040036,97994.0,97971.0,0.3608]
[1738947544861,0.2040036,97994.0,97993.0,0.3608]
[1738947545160,0.2040026,97995.0,97993.0,0.3608]
[1738947545760,0.2040026,97995.0,97986.0,0.23064]
[1738947545969,0.2041241,97936.0,97906.0,0.52204111]
[1738947546161,0.2041845,97907.0,97906.0,0.06808101]
[1738947546467,0.2042116,97894.0,97893.0,0.57152808]
[1738947546767,0.5650116,97894.0,97893.0,0.57100808]
[1738947547255,0.3608,97894.0,97884.0,0.00015316]
[1738947547454,0.3608,97894.0,97893.0,0.2042137]
[1738947547751,0.3608,97894.0,97884.0,0.00015316]
[1738947547752,0.00015316,97903.0,97884.0,0.00015316]
[1738947547956,0.00015316,97903.0,97899.0,0.2042008]
[1738947548156,0.00015316,97903.0,97901.0,0.204197]
[1738947548356,0.3608,97914.0,97900.0,0.1106]
[1738947548551,0.2041894,97905.0,97900.0,0.1106]
[1738947548869,0.3608,97914.0,97900.0,0.1106]
[1738947549263,0.001,97903.0,97900.0,0.1106]
[1738947549463,0.3608,97901.0,97900.0,0.1106]
[1738947549865,0.3608,97901.0,97900.0,0.1166]
[1738947551762,0.564997,97901.0,97900.0,0.1166]
[1738947552063,0.565997,97901.0,97900.0,0.1146]
[1738947552264,0.3618,97901.0,97900.0,0.1146]
[1738947552770,0.3608,97901.0,97900.0,0.1146]
[1738947553069,0.3608,97901.0,97900.0,0.1106]
[1738947553561,0.3608,97903.0,97900.0,0.1106]
[1738947554674,0.3608,97903.0,97900.0,0.1116]
[1738947555267,0.204197,97901.0,97900.0,0.1136]
[1738947555767,0.204197,97901.0,97900.0,0.1106]
[1738947556064,0.204197,97901.0,97900.0,0.1196]
[1738947556460,0.204197,97901.0,97900.0,0.1106]
[1738947556969,0.36212,97903.0,97900.0,0.1106]
[1738947557165,0.3608,97903.0,97900.0,0.1106]
[1738947557970,0.2041978,97901.0,97887.0,0.05692]
[1738947558269,0.3608,97893.0,97887.0,0.05692]
[1738947558475,0.3608,97893.0,97890.0,0.2042191]
[1738947558968,0.3608,97901.0,97887.0,0.06367434]
[1738947559174,0.3618,97901.0,97896.0,0.2042075]
[1738947560368,0.3618,97901.0,97898.0,0.2042022]
[1738947560571,0.3618,97901.0,97899.0,0.2042007]
[1738947560771,0.3608,97901.0,97892.0,0.2042155]
[1738947561067,0.001,97893.0,97887.0,0.06367434]
[1738947561272,0.001,97893.0,97891.0,0.2042167]
[1738947561473,0.001,97893.0,97887.0,0.07167434]
[1738947561675,0.3608,97901.0,97887.0,0.00675434]
[1738947561877,0.2042112,97895.0,97888.0,0.05692]
[1738947562066,0.3608,97901.0,97888.0,0.05692]
[1738947562267,0.3608,97901.0,97890.0,0.2042191]
[1738947562466,0.001,97893.0,97891.0,0.003]
[1738947562776,0.001,97893.0,97892.0,0.2042158]
[1738947563569,0.001,97893.0,97888.0,0.06092]
[1738947563570,0.3618,97893.0,97888.0,0.06092]
[1738947563772,0.3618,97893.0,97888.0,0.004]
[1738947564171,0.2042203,97890.0,97888.0,0.004]
[1738947564367,0.2042203,97890.0,97885.0,0.05692]
[1738947564879,0.2042288,97886.0,97884.0,0.00715596]
[1738947565067,0.3608,97885.0,97884.0,0.00015316]
[1738947566971,0.3608,97885.0,97843.0,0.61144]
[1738947566972,0.3608,97885.0,97846.0,0.05692]
[1738947567170,0.3608,97862.0,97850.0,0.33800658]
[1738947568073,0.3608,97862.0,97858.0,0.2042857]
[1738947569377,0.3608,97862.0,97858.0,0.13402339]
[1738947569674,0.3608,97862.0,97860.0,0.2042814]
[1738947569874,0.00015324,97866.0,97865.0,0.2042721]
[1738947570575,0.3608,97872.0,97869.0,0.204263]
[1738947570972,0.3608,97872.0,97861.0,0.05748]
[1738947571277,0.3608,97872.0,97869.0,0.2042633]
[1738947571476,0.36204001,97881.0,97869.0,0.2042633]
[1738947571783,0.00015324,97880.0,97871.0,0.2042596]
[1738947571977,0.00015324,97880.0,97870.0,0.27800658]
[1738947571978,0.00015324,97880.0,97873.0,0.2042535]
[1738947572182,0.00015324,97880.0,97874.0,0.1113]
[1738947572482,0.00015324,97880.0,97876.0,0.2042472]
[1738947572683,0.00015324,97880.0,97874.0,0.1113]
[1738947572877,0.00015324,97880.0,97877.0,0.2042455]
[1738947573183,0.00115324,97880.0,97877.0,0.2042455]
[1738947573374,0.00115324,97880.0,97874.0,0.1113]
[1738947574467,0.00015324,97880.0,97878.0,0.2042435]
[1738947574671,0.00115324,97880.0,97878.0,0.2042435]
[1738947575081,0.00015324,97880.0,97878.0,0.2042435]
[1738947575878,0.00015324,97880.0,97878.0,0.2092435]
[1738947576878,0.36233303,97913.0,97878.0,0.005]
[1738947577192,0.3608,97905.0,97892.0,0.2042146]
[1738947577374,0.3608,97897.0,97886.0,0.3608]
[1738947577571,0.3608,97897.0,97887.0,0.05772]
[1738947577983,0.3608,97897.0,97889.0,0.2042205]
[1738947578180,0.3608,97897.0,97887.0,0.05772]
[1738947578485,0.3608,97897.0,97892.0,0.2042155]
[1738947578685,0.18432677,97894.0,97892.0,0.2042155]
[1738947578880,0.18432677,97894.0,97887.0,0.05772]
[1738947579087,0.3608,97889.0,97887.0,0.05772]
[1738947579480,0.3608,97889.0,97887.0,0.06456748]
[1738947580382,0.3608,97889.0,97887.0,0.26879268]
[1738947580882,0.3608,97889.0,97887.0,0.00684748]
[1738947581087,0.3608,97889.0,97880.0,0.23795947]
[1738947581288,0.3608,97889.0,97887.0,0.204226]
[1738947582188,0.3608,97889.0,97887.0,0.209226]
[1738947582397,0.3618,97889.0,97887.0,0.209226]
[1738947582692,0.3618,97889.0,97887.0,0.208226]
[1738947582984,0.001,97889.0,97887.0,0.208226]
[1738947583381,0.001,97889.0,97887.0,0.204226]
[1738947583587,0.002,97889.0,97887.0,0.210226]
[1738947583794,0.001,97889.0,97887.0,0.210226]
[1738947583986,0.002,97889.0,97887.0,0.210226]
[1738947584889,0.001,97889.0,97887.0,0.204226]
[1738947585086,0.002,97889.0,97887.0,0.210226]
[1738947585593,0.00015324,97900.0,97899.0,0.2042012]
[1738947587588,0.00015324,97900.0,97899.0,0.2052012]
[1738947587792,0.00115324,97900.0,97899.0,0.2052012]
[1738947588290,0.00015324,97900.0,97899.0,0.2052012]
[1738947588683,0.00015324,97900.0,97899.0,0.001]
[1738947588885,0.20435234,97900.0,97899.0,0.001]
[1738947589387,0.00015324,97900.0,97899.0,0.001]
[1738947590687,0.20435234,97900.0,97899.0,0.001]
[1738947590894,0.00015324,97900.0,97899.0,0.001]
[1738947591195,0.00115324,97900.0,97899.0,0.001]
[1738947591390,0.00115324,97900.0,97896.0,0.2042069]
[1738947591999,0.00115324,97900.0,97890.0,0.18591475]
[1738947592289,0.20435314,97900.0,97890.0,0.18591475]
[1738947592495,0.3608,97893.0,97890.0,0.00555528]
[1738947592691,0.2042179,97891.0,97890.0,0.00015324]
[1738947593482,0.2042179,97891.0,97890.0,1e-08]
[1738947594193,0.2042179,97891.0,97890.0,0.00100001]
[1738947594388,0.2042179,97891.0,97890.0,0.00400001]
[1738947594897,0.36204001,97893.0,97890.0,0.00100001]
[1738947595090,0.3608,97893.0,97890.0,0.00400001]
[1738947595597,0.3608,97893.0,97890.0,0.20821961]
[1738947595985,0.3608,97893.0,97890.0,0.20721961]
[1738947596187,0.3608,97893.0,97890.0,0.20821961]
[1738947596495,0.3608,97893.0,97890.0,0.00400001]
[1738947596688,0.2042158,97892.0,97890.0,0.00400001]
[1738947597894,0.3608,97893.0,97890.0,0.00400001]
[1738947598083,0.3608,97893.0,97891.0,0.2042173]
[1738947599096,0.3608,97899.0,97891.0,0.2042173]
[1738947599291,0.3608,97899.0,97891.0,0.2062173]
[1738947599705,0.18232677,97898.0,97891.0,0.2062173]
[1738947599888,0.18232677,97898.0,97891.0,0.2072173]
[1738947600193,0.18232677,97898.0,97891.0,0.003]
[1738947600399,0.2042118,97894.0,97892.0,0.1225]
[1738947600696,0.2042158,97892.0,97891.0,0.002]
[1738947600887,0.2042158,97892.0,97890.0,1e-08]
[1738947601199,0.2042596,97871.0,97865.0,0.00549167]
[1738947601398,0.9258596,97871.0,97861.0,0.1117]
[1738947601590,0.7216,97871.0,97863.0,0.00548783]
[1738947601891,0.3608,97872.0,97861.0,0.1117]
[1738947602390,0.3608,97880.0,97873.0,0.2042538]
[1738947602587,0.00015324,97881.0,97880.0,0.2042409]
[1738947602792,0.36095324,97881.0,97870.0,0.24035947]
[1738947602985,0.36095324,97881.0,97878.0,0.2042437]
[1738947603295,0.36095324,97881.0,97870.0,0.06550142]
[1738947603495,0.3608,97871.0,97870.0,0.24035947]
[1738947603700,0.3608,97871.0,97870.0,0.06]
[1738947603899,0.00247324,97881.0,97880.0,0.001]
[1738947604100,0.00115324,97881.0,97880.0,0.2052409]
[1738947605096,0.00115324,97881.0,97880.0,0.001]
[1738947605301,0.00115324,97881.0,97880.0,0.007]
[1738947605510,0.00215324,97881.0,97880.0,0.007]
[1738947605893,0.72375324,97881.0,97870.0,0.06]
[1738947606091,0.5650596,97871.0,97870.0,0.06]
[1738947606399,0.3618,97871.0,97870.0,0.061]
[1738947606898,0.3618,97871.0,97870.0,0.2652617]
[1738947606899,0.001,97871.0,97870.0,0.2652617]
[1738947607091,0.36195324,97881.0,97870.0,0.2642617]
[1738947607289,0.3608,97871.0,97870.0,0.061]
[1738947607497,0.3618,97871.0,97870.0,0.07]
[1738947608107,0.3628,97871.0,97870.0,0.07]
[1738947608401,0.3628,97871.0,97870.0,0.2742617]
[1738947608600,0.3618,97871.0,97870.0,0.2672617]
[1738947609294,0.18288968,97880.0,97879.0,0.204243]
[1738947609901,0.2042037,97898.0,97879.0,0.2042409]
[1738947610202,0.3608,97900.0,97881.0,0.3608]
[1738947610996,0.24325561,97895.0,97881.0,0.3608]
[1738947611203,0.24325561,97895.0,97885.0,0.2042296]
[1738947611403,0.24325561,97895.0,97887.0,0.2042253]
[1738947611800,0.00015324,97895.0,97892.0,0.2042146]
[1738947611995,0.00015324,97895.0,97881.0,0.36636861]
[1738947612197,0.00015324,97895.0,97887.0,0.2042252]
[1738947612198,0.001,97889.0,97887.0,0.2042252]
[1738947612597,0.00015324,97895.0,97887.0,0.2042252]
[1738947612899,1e-08,97895.0,97894.0,0.5650117]
[1738947613100,1e-08,97895.0,97894.0,0.6250117]
[1738947614215,1e-08,97895.0,97894.0,0.6270117]
[1738947614400,1e-08,97895.0,97894.0,0.63349594]
[1738947615396,1e-08,97895.0,97894.0,0.42928424]
[1738947615805,1e-08,97895.0,97894.0,0.42728424]
[1738947616005,0.00100001,97895.0,97894.0,0.42828424]
[1738947616315,0.1123,97918.0,97898.0,0.2042015]
[1738947616899,0.3608,97913.0,97898.0,0.2042015]
[1738947617100,0.1123,97918.0,97894.0,0.42828424]
[1738947617400,0.1123,97918.0,97905.0,0.2041878]
[1738947617604,0.00015324,97916.0,97907.0,0.2041838]
[1738947617806,0.00015324,97916.0,97915.0,0.5649679]
[1738947618211,0.00015324,97916.0,97915.0,0.3608]
[1738947618402,0.00015324,97916.0,97907.0,0.3608]
[1738947619106,0.00015324,97916.0,97896.0,0.36095324]
[1738947619310,0.00015324,97916.0,97905.0,0.3608]
[1738947620310,0.00415324,97916.0,97905.0,0.3608]
[1738947620508,0.00715324,97916.0,97905.0,0.3608]
[1738947620707,0.00315324,97916.0,97908.0,0.204181]
[1738947621012,0.00715324,97916.0,97905.0,0.3608]
[1738947621208,0.3608,97913.0,97896.0,0.21043195]
[1738947621410,0.3608,97913.0,97896.0,0.20983195]
[1738947622007,0.3608,97913.0,97896.0,0.00562625]
[1738947622214,0.3608,97913.0,97900.0,0.2041979]
[1738947623114,0.3608,97913.0,97902.0,0.2041946]
[1738947623605,0.00817,97913.0,97902.0,0.2041946]
[1738947623810,0.00817,97913.0,97907.0,0.2041838]
[1738947624213,0.00783,97912.0,97900.0,0.1813314]
[1738947624507,0.3608,97901.0,97900.0,0.001]
[1738947624907,0.00917,97913.0,97900.0,0.001]
[1738947624908,0.00917,97913.0,97900.0,0.3618]
[1738947625121,0.00917,97913.0,97911.0,0.2041745]
[1738947626607,0.00917,97913.0,97911.0,0.2061745]
[1738947626807,0.00817,97913.0,97911.0,0.2061745]
[1738947627008,0.00817,97913.0,97911.0,0.002]
[1738947627207,0.00817,97913.0,97911.0,0.2061755]
[1738947627608,0.0337,97913.0,97911.0,0.2071755]
[1738947628112,0.0337,97913.0,97911.0,0.2061755]
[1738947628410,0.0337,97913.0,97911.0,0.2071755]
[1738947628607,0.0337,97913.0,97911.0,0.2061755]
[1738947628815,0.0337,97913.0,97911.0,0.2071755]
[1738947630104,0.0337,97913.0,97911.0,0.2041755]
[1738947630403,0.0337,97913.0,97911.0,0.2071755]
[1738947630813,0.0337,97913.0,97911.0,0.003]
[1738947631721,0.0337,97913.0,97911.0,0.2071761]
[1738947632514,0.0347,97913.0,97911.0,0.006]
[1738947633604,0.0347,97913.0,97912.0,0.2041741]
[1738947634417,0.0357,97913.0,97912.0,0.2041741]
[1738947634823,0.0357,97913.0,97912.0,0.5649741]
[1738947635006,0.0357,97913.0,97912.0,0.6783741]
[1738947635317,0.0347,97913.0,97912.0,0.3638]
[1738947636714,0.0347,97913.0,97912.0,0.3688]
[1738947637330,0.0357,97913.0,97912.0,0.3718]
[1738947637815,0.0347,97913.0,97912.0,0.3658]
[1738947638021,0.0347,97913.0,97912.0,0.3688]
[1738947638419,0.0347,97913.0,97912.0,0.3658]
[1738947638722,0.0357,97913.0,97912.0,0.3718]
[1738947639117,0.0357,97913.0,97912.0,0.3668]
[1738947639118,0.0347,97913.0,97912.0,0.3668]
[1738947639323,0.0337,97913.0,97912.0,0.3668]
[1738947640124,0.0347,97913.0,97912.0,0.3688]
[1738947640518,0.08434797,97913.0,97912.0,0.3688]
[1738947640911,0.08434797,97913.0,97912.0,0.3658]
[1738947641218,0.08434797,97913.0,97912.0,0.3688]
[1738947642226,0.08534797,97913.0,97912.0,0.3658]
[1738947642525,0.08434797,97913.0,97896.0,0.00015324]
[1738947642719,0.28134997,97913.0,97912.0,0.005]
[1738947643418,0.2041946,97903.0,97896.0,0.00015324]
[1738947643622,0.3608,97900.0,97896.0,0.00015324]
[1738947645028,0.3608,97900.0,97896.0,0.00515324]
[1738947645227,0.3608,97901.0,97896.0,0.00515324]
[1738947645730,0.3608,97897.0,97886.0,0.00052]
[1738947646021,0.2042467,97878.0,97868.0,0.0062898]
[1738947646227,0.2042467,97878.0,97868.0,0.12647616]
[1738947646426,0.2042467,97878.0,97872.0,0.24437481]
[1738947647429,0.2052467,97878.0,97876.0,0.00653233]
[1738947647838,0.2062467,97878.0,97876.0,0.01353233]
[1738947648322,0.302,97878.0,97861.0,0.36433426]
[1738947648519,0.7216,97862.0,97861.0,0.36433426]
[1738947648734,0.7216,97862.0,97844.0,0.48153344]
[1738947648937,0.3608,97850.0,97844.0,0.48153344]
[1738947649233,0.5651035,97850.0,97844.0,0.48153344]
[1738947649826,0.57142758,97850.0,97844.0,0.48153344]
[1738947650029,0.2043139,97845.0,97844.0,0.48153344]
[1738947650334,0.5651139,97845.0,97844.0,0.48101344]
[1738947650634,0.5651139,97845.0,97840.0,0.00015324]
[1738947650635,0.2043223,97841.0,97840.0,0.00015324]
[1738947652736,0.2053223,97841.0,97840.0,0.00015324]
[1738947653237,0.2063223,97841.0,97840.0,0.00215324]
[1738947653935,0.5063223,97841.0,97840.0,1e-08]
[1738947654627,0.2043724,97817.0,97806.0,0.204394]
[1738947654826,0.3608,97816.0,97815.0,0.2043766]
[1738947655237,0.3608,97816.0,97806.0,0.00632472]
[1738947655427,0.3608,97816.0,97810.0,0.2043851]
[1738947655734,0.00015334,97825.0,97815.0,0.5651766]
[1738947655932,1e-08,97825.0,97823.0,0.565158]
[1738947656138,0.1353,97861.0,97853.0,0.2042952]
[1738947656332,0.3608,97872.0,97853.0,0.2042952]
[1738947656535,0.3608,97872.0,97854.0,0.2573]
[1738947656836,0.2297867,97878.0,97854.0,0.2573]
[1738947657044,0.02554,97878.0,97861.0,0.2042805]
[1738947657238,0.02554,97878.0,97862.0,0.3608]
[1738947657535,0.00015334,97864.0,97862.0,0.3608]
[1738947658836,0.00015334,97864.0,97855.0,0.1253]
[1738947659035,0.00832334,97864.0,97855.0,0.1253]
[1738947659340,0.00832334,97864.0,97855.0,0.00648482]
[1738947659541,0.2042889,97857.0,97854.0,0.12662]
[1738947659729,0.2042973,97853.0,97845.0,0.06007334]
[1738947660239,0.36140001,97859.0,97845.0,0.06655687]
[1738947660546,0.2043051,97850.0,97845.0,0.00015334]
[1738947660833,0.3608,97851.0,97845.0,0.00015334]
[1738947661025,0.2043118,97846.0,97845.0,0.00015334]
[1738947661732,0.36148,97851.0,97845.0,0.00015334]
[1738947661941,0.1243,97858.0,97845.0,0.00015334]
[1738947662124,0.13064139,97858.0,97845.0,0.00015334]
[1738947662323,0.2042907,97857.0,97845.0,0.00015334]
[1738947662530,0.00064,97859.0,97855.0,0.3608]
[1738947662729,0.204259,97872.0,97851.0,0.2043001]
[1738947662931,0.02554,97859.0,97855.0,0.2042916]
[1738947663138,0.02554,97859.0,97856.0,0.3608]
[1738947663330,0.02554,97859.0,97857.0,0.2042889]
[1738947663331,0.001,97858.0,97857.0,0.2042889]
[1738947663527,0.001,97858.0,97857.0,0.3396889]
[1738947663737,0.3608,97902.0,97857.0,0.3396889]
[1738947663738,0.3608,97907.0,97874.0,0.2042534]
[1738947664032,0.00060001,97902.0,97896.0,0.3608]
[1738947664240,0.2041775,97911.0,97896.0,0.3608]
[1738947664431,0.3608,97909.0,97896.0,0.3608]
[1738947664635,0.3608,97909.0,97894.0,0.3608]
[1738947664939,0.3608,97909.0,97893.0,0.36095325]
[1738947664940,0.38312,97909.0,97893.0,0.36095325]
[1738947665137,0.02232,97909.0,97893.0,0.36095325]
[1738947665437,0.02232,97909.0,97893.0,0.00015325]
[1738947665737,0.2265021,97909.0,97893.0,0.00015325]
[1738947666038,0.3608,97899.0,97893.0,0.00015325]
[1738947667036,0.04032,97909.0,97893.0,0.00015325]
[1738947667343,0.03132,97909.0,97901.0,0.3608]
[1738947667643,0.03132,97909.0,97907.0,0.2041827]
[1738947667839,0.03132,97909.0,97908.0,0.0596]
[1738947668135,0.3608,97932.0,97908.0,0.1942]
[1738947668440,0.3608,97942.0,97918.0,0.2041616]
[1738947668645,0.3608,97921.0,97911.0,0.3608]
[1738947668937,0.3608,97921.0,97911.0,0.5649745]
[1738947669132,0.36140001,97933.0,97920.0,0.3608]
[1738947669333,0.00816,97921.0,97915.0,0.204167]
[1738947669635,0.00816,97921.0,97917.0,0.00015325]
[1738947669838,0.36896,97921.0,97917.0,0.00015325]
[1738947670039,0.5649615,97919.0,97917.0,0.00015325]
[1738947670230,0.2041944,97903.0,97901.0,0.001]
[1738947670430,0.2041944,97903.0,97888.0,0.00153231]
[1738947670431,0.3608,97902.0,97888.0,0.00153231]
[1738947670635,0.3608,97892.0,97888.0,0.00153231]
[1738947671342,0.2042221,97889.0,97888.0,0.00153231]
[1738947671635,0.2042388,97881.0,97880.0,0.00015325]
[1738947671831,0.5650388,97881.0,97880.0,0.00015325]
[1738947672033,0.3608,97881.0,97880.0,0.00015325]
[1738947672941,0.3638,97881.0,97880.0,0.00015325]
[1738947673829,0.3608,97881.0,97880.0,0.00015325]
[1738947674030,0.3618,97881.0,97880.0,0.00015325]
[1738947674526,0.3618,97881.0,97880.0,0.00215325]
[1738947675342,0.002,97881.0,97880.0,0.00615325]
[1738947675530,0.005,97881.0,97880.0,0.00615325]
[1738947676139,0.54233272,97881.0,97871.0,0.13198582]
[1738947676439,0.54233272,97881.0,97880.0,0.001]
[1738947676642,0.54233272,97881.0,97871.0,0.13198582]
[1738947676845,0.54333272,97881.0,97871.0,0.13831616]
[1738947677346,0.54333272,97881.0,97871.0,0.13198582]
[1738947677645,0.2042637,97870.0,97866.0,0.00015325]
[1738947677946,0.3608,97873.0,97866.0,0.00015325]
[1738947678738,0.5650562,97873.0,97871.0,0.005]
[1738947680034,0.00015325,97878.0,97877.0,0.2042471]
[1738947681436,0.00215325,97878.0,97877.0,0.2042471]
[1738947681637,0.00215325,97878.0,97877.0,0.21080203]
[1738947682343,0.00215325,97878.0,97877.0,0.00655493]